[Event "Live Chess"]
[Site "Chess.com"]
[Date "2024.06.02"]
[Round "-"]
[White "EPotapov05"]
[Black "OleksiyJr1"]
[Result "1-0"]
[WhiteElo "1808"]
[BlackElo "1530"]
[TimeControl "300"]
[EndTime "23:28:22 PDT"]
[Termination "EPotapov05 won by resignation"]

1. d4 {[%clk 0:04:55.5]} 1... Nf6 {[%clk 0:04:57.9]} 2. c4 {[%clk 0:04:54.6]}
2... c6 {[%clk 0:04:57.7]} 3. Bf4 {[%clk 0:04:51.2]} 3... d5 {[%clk 0:04:56.3]}
4. e3 {[%clk 0:04:50.2]} 4... Bf5 {[%clk 0:04:54.7]} 5. Nc3 {[%clk 0:04:48.5]}
5... e6 {[%clk 0:04:54]} 6. Qb3 {[%clk 0:04:47.4]} 6... Qb6 {[%clk 0:04:51.6]}
7. c5 {[%clk 0:04:46.7]} 7... Qxb3 {[%clk 0:04:50.5]} 8. axb3 {[%clk 0:04:46.6]}
8... Nbd7 {[%clk 0:04:46.6]} 9. b4 {[%clk 0:04:45.4]} 9... Be7 {[%clk
0:04:44.9]} 10. h3 {[%clk 0:04:44.4]} 10... O-O {[%clk 0:04:44.3]} 11. b5 {[%clk
0:04:41.5]} 11... cxb5 {[%clk 0:04:41.9]} 12. Bxb5 {[%clk 0:04:34.1]} 12... b6
{[%clk 0:04:35.5]} 13. b4 {[%clk 0:04:31.4]} 13... bxc5 {[%clk 0:04:33.7]} 14.
bxc5 {[%clk 0:04:28.5]} 14... Rfd8 {[%clk 0:04:23.9]} 15. Bc6 {[%clk 0:04:23.3]}
15... Rac8 {[%clk 0:04:19.1]} 16. Bb7 {[%clk 0:04:20.5]} 16... Ne4 {[%clk
0:03:59.9]} 17. Nxe4 {[%clk 0:04:14.3]} 17... Bxe4 {[%clk 0:03:57.6]} 18. f3
{[%clk 0:04:00.7]} 18... g5 {[%clk 0:03:40.1]} 19. Bxc8 {[%clk 0:03:57.1]} 19...
gxf4 {[%clk 0:03:34.4]} 20. Bxd7 {[%clk 0:03:51.7]} 20... Rxd7 {[%clk
0:03:31.8]} 21. fxe4 {[%clk 0:03:49.8]} 21... dxe4 {[%clk 0:03:30.1]} 22. exf4
{[%clk 0:03:25.1]} 22... Rxd4 {[%clk 0:03:27.9]} 23. Rxa7 {[%clk 0:03:21.7]}
23... Bxc5 {[%clk 0:03:26.4]} 24. Ra8+ {[%clk 0:03:20]} 24... Kg7 {[%clk
0:03:25.5]} 25. Ne2 {[%clk 0:03:16.5]} 25... Rd3 {[%clk 0:03:21.5]} 26. Rb8
{[%clk 0:03:00.8]} 26... Bd6 {[%clk 0:03:17.9]} 27. Rb5 {[%clk 0:02:53.5]} 27...
Re3 {[%clk 0:03:15.9]} 28. Kf2 {[%clk 0:02:47.9]} 28... Rd3 {[%clk 0:03:07]} 29.
Rc1 {[%clk 0:02:42.7]} 29... Rd2 {[%clk 0:03:02.8]} 30. g3 {[%clk 0:02:34.7]}
30... Rd3 {[%clk 0:02:52.8]} 31. Rc4 {[%clk 0:02:26.6]} 31... e3+ {[%clk
0:02:48.3]} 32. Kf3 {[%clk 0:02:25.9]} 1-0

[Event "Live Chess"]
[Site "Chess.com"]
[Date "2024.06.02"]
[Round "-"]
[White "MagnersCarlsberg2870"]
[Black "AlanBstard10"]
[Result "1/2-1/2"]
[WhiteElo "1818"]
[BlackElo "1167"]
[TimeControl "300"]
[EndTime "23:28:58 PDT"]
[Termination "Game drawn by agreement"]

1. d4 {[%clk 0:04:57.1]} 1... Nf6 {[%clk 0:04:58.2]} 2. Nf3 {[%clk 0:04:55.8]}
2... d5 {[%clk 0:04:55.9]} 3. e3 {[%clk 0:04:54.9]} 3... c5 {[%clk 0:04:52.4]}
4. Bd3 {[%clk 0:04:53.7]} 4... Qb6 {[%clk 0:04:46.5]} 5. c3 {[%clk 0:04:52.2]}
5... c4 {[%clk 0:04:44.9]} 6. Bc2 {[%clk 0:04:50.9]} 6... e6 {[%clk 0:04:42.6]}
7. Nbd2 {[%clk 0:04:49.4]} 7... Bd6 {[%clk 0:04:28.5]} 8. Qe2 {[%clk 0:04:46.7]}
8... Nc6 {[%clk 0:04:25.1]} 9. O-O {[%clk 0:04:45.2]} 9... Bd7 {[%clk
0:04:23.9]} 10. e4 {[%clk 0:04:43.8]} 10... dxe4 {[%clk 0:04:21.8]} 11. Nxe4
{[%clk 0:04:43]} 11... Nxe4 {[%clk 0:04:19.8]} 12. Qxe4 {[%clk 0:04:42.1]} 12...
O-O-O {[%clk 0:04:09]} 13. Ne5 {[%clk 0:04:40.9]} 13... Nxe5 {[%clk 0:04:07.6]}
14. dxe5 {[%clk 0:04:39.3]} 14... Bc6 {[%clk 0:03:58.6]} 15. Qxc4 {[%clk
0:04:35.1]} 15... Bc5 {[%clk 0:03:51.3]} 16. Bf4 {[%clk 0:04:24.8]} 16... Rd7
{[%clk 0:03:29.1]} 17. a4 {[%clk 0:04:23.4]} 17... a5 {[%clk 0:03:17.1]} 18. b4
{[%clk 0:04:17.9]} 18... axb4 {[%clk 0:03:14.4]} 19. cxb4 {[%clk 0:04:16.9]}
19... Qxb4 {[%clk 0:03:08.7]} 20. Qxb4 {[%clk 0:04:15.3]} 20... Bxb4 {[%clk
0:03:07.4]} 21. Rfd1 {[%clk 0:04:10.2]} 21... Rxd1+ {[%clk 0:03:04.9]} 22. Rxd1
{[%clk 0:04:07.8]} 22... Rd8 {[%clk 0:02:56.7]} 23. Rxd8+ {[%clk 0:04:06.1]}
23... Kxd8 {[%clk 0:02:55.5]} 24. Be3 {[%clk 0:03:57.5]} 24... Kc7 {[%clk
0:02:45.4]} 25. f4 {[%clk 0:03:55.3]} 25... b5 {[%clk 0:02:38.2]} 26. axb5
{[%clk 0:03:52.4]} 26... Bxb5 {[%clk 0:02:37.3]} 27. Bxh7 {[%clk 0:03:48.4]}
27... g6 {[%clk 0:02:34.4]} 28. Bg8 {[%clk 0:03:47]} 28... Be8 {[%clk
0:02:30.1]} 29. h4 {[%clk 0:03:38.6]} 29... Be1 {[%clk 0:02:23.8]} 30. Bf2
{[%clk 0:03:35.5]} 30... Bd2 {[%clk 0:02:15.7]} 31. g3 {[%clk 0:03:29.4]} 31...
Kd7 {[%clk 0:02:11.3]} 32. Bc5 {[%clk 0:03:27.7]} 32... Ba5 {[%clk 0:02:02.1]}
33. Kf2 {[%clk 0:03:25.9]} 33... Bd8 {[%clk 0:02:00.8]} 34. Kf3 {[%clk
0:03:17.7]} 34... Be7 {[%clk 0:01:59.8]} 35. Bb6 {[%clk 0:03:15.3]} 35... Bd8
{[%clk 0:01:56]} 36. Bc5 {[%clk 0:03:11]} 36... Be7 {[%clk 0:01:55.2]} 37. Bd4
{[%clk 0:03:03.3]} 37... Bd8 {[%clk 0:01:48]} 38. Bh7 {[%clk 0:02:59]} 38... Ke7
{[%clk 0:01:45.5]} 39. g4 {[%clk 0:02:56.6]} 39... Kf8 {[%clk 0:01:44.4]} 40. h5
{[%clk 0:02:55.7]} 40... Kg7 {[%clk 0:01:41.3]} 41. hxg6 {[%clk 0:02:54.5]}
41... fxg6 {[%clk 0:01:39.4]} 42. Bxg6 {[%clk 0:02:48.9]} 42... Kxg6 {[%clk
0:01:38]} 43. f5+ {[%clk 0:02:48]} 43... exf5 {[%clk 0:01:36.8]} 44. gxf5+
{[%clk 0:02:47]} 44... Kxf5 {[%clk 0:01:35.9]} 45. Bc3 {[%clk 0:02:43.7]}
1/2-1/2

[Event "Live Chess"]
[Site "Chess.com"]
[Date "2024.06.02"]
[Round "-"]
[White "JoeyCage"]
[Black "Delacorta"]
[Result "1-0"]
[WhiteElo "2396"]
[BlackElo "1514"]
[TimeControl "300"]
[EndTime "23:29:44 PDT"]
[Termination "JoeyCage won by resignation"]

1. e4 {[%clk 0:04:57.2]} 1... e6 {[%clk 0:04:59]} 2. d4 {[%clk 0:04:55.6]} 2...
d5 {[%clk 0:04:58]} 3. Nc3 {[%clk 0:04:54.5]} 3... dxe4 {[%clk 0:04:56.1]} 4.
Nxe4 {[%clk 0:04:53.2]} 4... Bd7 {[%clk 0:04:55.2]} 5. Nf3 {[%clk 0:04:51.6]}
5... Bc6 {[%clk 0:04:54]} 6. Bd3 {[%clk 0:04:49.8]} 6... Nd7 {[%clk 0:04:53]} 7.
Qe2 {[%clk 0:04:42.4]} 7... Ngf6 {[%clk 0:04:45.8]} 8. Neg5 {[%clk 0:04:36.1]}
8... Be7 {[%clk 0:04:38]} 9. Nxf7 {[%clk 0:04:20.2]} 9... Kxf7 {[%clk
0:04:34.3]} 10. Ng5+ {[%clk 0:04:18.6]} 10... Kg8 {[%clk 0:04:30.4]} 11. Qxe6+
{[%clk 0:04:16]} 1-0

[Event "Live Chess"]
[Site "Chess.com"]
[Date "2024.06.02"]
[Round "-"]
[White "febray_27"]
[Black "KeithArkell"]
[Result "0-1"]
[WhiteElo "2050"]
[BlackElo "2429"]
[TimeControl "300"]
[EndTime "23:29:49 PDT"]
[Termination "KeithArkell won by resignation"]

1. Nf3 {[%clk 0:04:58.1]} 1... d5 {[%clk 0:04:58.8]} 2. d4 {[%clk 0:04:57.5]}
2... Bg4 {[%clk 0:04:57]} 3. g3 {[%clk 0:04:56.9]} 3... Bxf3 {[%clk 0:04:56.2]}
4. exf3 {[%clk 0:04:56.3]} 4... e6 {[%clk 0:04:54.8]} 5. Bg2 {[%clk 0:04:53.1]}
5... g6 {[%clk 0:04:54.2]} 6. O-O {[%clk 0:04:52.6]} 6... Bg7 {[%clk 0:04:53.6]}
7. Re1 {[%clk 0:04:52.2]} 7... Ne7 {[%clk 0:04:53.2]} 8. c4 {[%clk 0:04:51.7]}
8... c6 {[%clk 0:04:52.1]} 9. Nc3 {[%clk 0:04:50.4]} 9... O-O {[%clk 0:04:51.1]}
10. cxd5 {[%clk 0:04:48.9]} 10... Nxd5 {[%clk 0:04:49.4]} 11. Nxd5 {[%clk
0:04:47.9]} 11... cxd5 {[%clk 0:04:48.8]} 12. b3 {[%clk 0:04:45.7]} 12... Nc6
{[%clk 0:04:48]} 13. Bb2 {[%clk 0:04:45]} 13... Qb6 {[%clk 0:04:47.2]} 14. Ba3
{[%clk 0:04:36.1]} 14... Rfd8 {[%clk 0:04:45]} 15. Bc5 {[%clk 0:04:35.5]} 15...
Qc7 {[%clk 0:04:43.2]} 16. Rc1 {[%clk 0:04:32.3]} 16... b6 {[%clk 0:04:42.3]}
17. Bb4 {[%clk 0:04:23.3]} 17... Qd7 {[%clk 0:04:40.8]} 18. Bc3 {[%clk
0:04:18.1]} 18... Rac8 {[%clk 0:04:39.5]} 19. a3 {[%clk 0:04:12]} 19... Nxd4
{[%clk 0:04:36.8]} 20. Bxd4 {[%clk 0:03:59.2]} 20... Rxc1 {[%clk 0:04:35.3]} 21.
Qxc1 {[%clk 0:03:59.1]} 21... Bxd4 {[%clk 0:04:33.7]} 22. Qd2 {[%clk 0:03:48.7]}
22... Bf6 {[%clk 0:04:31.3]} 23. f4 {[%clk 0:03:47.8]} 23... Rc8 {[%clk
0:04:29.6]} 24. f5 {[%clk 0:03:47.7]} 24... gxf5 {[%clk 0:04:27.9]} 25. h4
{[%clk 0:03:34]} 25... Qc7 {[%clk 0:04:26.2]} 26. Qh6 {[%clk 0:03:32.4]} 26...
Bg7 {[%clk 0:04:24.8]} 27. Qg5 {[%clk 0:03:30.1]} 27... Qc3 {[%clk 0:04:19.8]}
28. Re2 {[%clk 0:02:45.2]} 28... Qc1+ {[%clk 0:04:17.6]} 29. Qxc1 {[%clk
0:02:44.6]} 29... Rxc1+ {[%clk 0:04:16.4]} 30. Kh2 {[%clk 0:02:44.5]} 30... d4
{[%clk 0:04:13.1]} 31. Rd2 {[%clk 0:02:41.4]} 31... Rc3 {[%clk 0:04:11.2]} 32.
Rb2 {[%clk 0:02:37.1]} 32... d3 {[%clk 0:04:10.3]} 33. Bf3 {[%clk 0:02:35.9]}
33... Rc2 {[%clk 0:04:09.5]} 34. Rb1 {[%clk 0:02:33.9]} 34... Rxf2+ {[%clk
0:04:08.6]} 35. Kh3 {[%clk 0:02:33.4]} 35... Rxf3 {[%clk 0:04:06.9]} 0-1

[Event "Live Chess"]
[Site "Chess.com"]
[Date "2024.06.02"]
[Round "-"]
[White "Greenbecker"]
[Black "matt1979"]
[Result "1-0"]
[WhiteElo "1727"]
[BlackElo "1385"]
[TimeControl "300"]
[EndTime "23:30:17 PDT"]
[Termination "Greenbecker won by resignation"]

1. e4 {[%clk 0:04:58.1]} 1... d6 {[%clk 0:04:58.4]} 2. d4 {[%clk 0:04:56.3]}
2... Nf6 {[%clk 0:04:57.3]} 3. Nc3 {[%clk 0:04:55]} 3... Nbd7 {[%clk 0:04:55.9]}
4. Nf3 {[%clk 0:04:53.3]} 4... e5 {[%clk 0:04:54.5]} 5. dxe5 {[%clk 0:04:51.9]}
5... dxe5 {[%clk 0:04:52.8]} 6. Bc4 {[%clk 0:04:48.2]} 6... Bb4 {[%clk
0:04:50.6]} 7. Bg5 {[%clk 0:04:38.9]} 7... h6 {[%clk 0:04:45.7]} 8. Bxf6 {[%clk
0:04:37.1]} 8... Nxf6 {[%clk 0:04:38.6]} 9. Qxd8+ {[%clk 0:04:32.2]} 9... Kxd8
{[%clk 0:04:34.7]} 10. Nxe5 {[%clk 0:04:29.6]} 10... Be6 {[%clk 0:04:25]} 11.
O-O-O+ {[%clk 0:04:25.2]} 11... Ke7 {[%clk 0:04:21.6]} 12. Bxe6 {[%clk
0:04:21.2]} 12... Kxe6 {[%clk 0:04:15.2]} 13. Nd3 {[%clk 0:04:05.2]} 13... Bxc3
{[%clk 0:04:12.1]} 14. bxc3 {[%clk 0:04:04.3]} 14... Nxe4 {[%clk 0:04:10.7]} 15.
Rhe1 {[%clk 0:04:01.2]} 15... f5 {[%clk 0:04:07.4]} 16. f3 {[%clk 0:03:59.6]}
16... Kf6 {[%clk 0:03:48.9]} 17. fxe4 {[%clk 0:03:57.9]} 17... fxe4 {[%clk
0:03:47.9]} 18. Rxe4 {[%clk 0:03:56.4]} 18... Rhe8 {[%clk 0:03:43.2]} 19. Rde1
{[%clk 0:03:50.4]} 19... Rxe4 {[%clk 0:03:41.1]} 20. Rxe4 {[%clk 0:03:48.9]} 1-0

[Event "Live Chess"]
[Site "Chess.com"]
[Date "2024.06.02"]
[Round "-"]
[White "RichardABates"]
[Black "NAZRIZ1977"]
[Result "1-0"]
[WhiteElo "2357"]
[BlackElo "2098"]
[TimeControl "300"]
[EndTime "23:30:31 PDT"]
[Termination "RichardABates won by resignation"]

1. d4 {[%clk 0:04:56.5]} 1... Nf6 {[%clk 0:04:58.6]} 2. Nf3 {[%clk 0:04:53.8]}
2... g6 {[%clk 0:04:57.3]} 3. g3 {[%clk 0:04:52.3]} 3... Bg7 {[%clk 0:04:56]} 4.
c4 {[%clk 0:04:51.1]} 4... O-O {[%clk 0:04:54.5]} 5. Bg2 {[%clk 0:04:49.8]} 5...
d6 {[%clk 0:04:53.4]} 6. O-O {[%clk 0:04:48.6]} 6... Nbd7 {[%clk 0:04:51.3]} 7.
Nc3 {[%clk 0:04:46.4]} 7... e5 {[%clk 0:04:49.6]} 8. e3 {[%clk 0:04:44.1]} 8...
Re8 {[%clk 0:04:46.1]} 9. a4 {[%clk 0:04:40.6]} 9... a5 {[%clk 0:04:43.1]} 10.
b3 {[%clk 0:04:39]} 10... Nh5 {[%clk 0:04:26.5]} 11. Ba3 {[%clk 0:04:28.5]}
11... f5 {[%clk 0:04:23.7]} 12. dxe5 {[%clk 0:04:24.5]} 12... Nxe5 {[%clk
0:04:11.9]} 13. Nxe5 {[%clk 0:04:20.4]} 13... dxe5 {[%clk 0:04:10.6]} 14. Qxd8
{[%clk 0:04:16.5]} 14... Rxd8 {[%clk 0:04:09.6]} 15. Rad1 {[%clk 0:04:04.3]}
15... Be6 {[%clk 0:03:06.1]} 16. Nb5 {[%clk 0:04:01.9]} 16... Rxd1 {[%clk
0:02:56.9]} 17. Rxd1 {[%clk 0:03:57.8]} 1-0

[Event "Live Chess"]
[Site "Chess.com"]
[Date "2024.06.02"]
[Round "-"]
[White "MaximKovalenko83"]
[Black "Dhaydon19"]
[Result "0-1"]
[WhiteElo "2173"]
[BlackElo "2677"]
[TimeControl "300"]
[EndTime "23:31:28 PDT"]
[Termination "Dhaydon19 won on time"]

1. d4 {[%clk 0:04:52.1]} 1... d5 {[%clk 0:04:58.6]} 2. Nf3 {[%clk 0:04:40.3]}
2... e6 {[%clk 0:04:57.5]} 3. c4 {[%clk 0:04:39]} 3... Nf6 {[%clk 0:04:56.2]} 4.
Nc3 {[%clk 0:04:38.9]} 4... dxc4 {[%clk 0:04:54.9]} 5. g3 {[%clk 0:04:38.4]}
5... a6 {[%clk 0:04:54]} 6. Bg2 {[%clk 0:04:38]} 6... Be7 {[%clk 0:04:53.1]} 7.
O-O {[%clk 0:04:37.7]} 7... O-O {[%clk 0:04:52.8]} 8. a4 {[%clk 0:04:36.3]} 8...
Nc6 {[%clk 0:04:51.1]} 9. Bf4 {[%clk 0:04:32.3]} 9... Nd5 {[%clk 0:04:48.8]} 10.
Bd2 {[%clk 0:04:29.4]} 10... Rb8 {[%clk 0:04:44.5]} 11. e4 {[%clk 0:04:25.5]}
11... Ndb4 {[%clk 0:04:41.3]} 12. Be3 {[%clk 0:04:20.1]} 12... Nd3 {[%clk
0:04:33.3]} 13. Qe2 {[%clk 0:04:15.2]} 13... b5 {[%clk 0:04:30.3]} 14. axb5
{[%clk 0:04:09.2]} 14... axb5 {[%clk 0:04:28.9]} 15. d5 {[%clk 0:04:05.9]} 15...
exd5 {[%clk 0:04:26.5]} 16. Nxd5 {[%clk 0:03:58.8]} 16... Bd6 {[%clk 0:04:22.6]}
17. b3 {[%clk 0:03:54]} 17... Be6 {[%clk 0:04:15.1]} 18. bxc4 {[%clk 0:03:48.9]}
18... bxc4 {[%clk 0:04:13.9]} 19. Ra4 {[%clk 0:03:39.7]} 19... Rb2 {[%clk
0:03:52.2]} 20. Qd1 {[%clk 0:03:37.9]} 20... Rb8 {[%clk 0:03:39.7]} 21. Qc2
{[%clk 0:03:27.3]} 21... Ncb4 {[%clk 0:03:38.3]} 22. Qxc4 {[%clk 0:03:22.5]}
22... Nxd5 {[%clk 0:03:37.4]} 23. Qxd3 {[%clk 0:03:17.4]} 23... Nxe3 {[%clk
0:03:34.5]} 24. Qxe3 {[%clk 0:03:16.6]} 24... Qe7 {[%clk 0:03:29.6]} 25. Rc1
{[%clk 0:03:07.3]} 25... Rb3 {[%clk 0:03:23.4]} 26. Qa7 {[%clk 0:02:53.2]} 26...
c5 {[%clk 0:03:17.8]} 27. Qa6 {[%clk 0:02:39.9]} 27... Rfb8 {[%clk 0:03:09]} 28.
e5 {[%clk 0:02:37.3]} 28... Bc7 {[%clk 0:03:06.8]} 29. Qc6 {[%clk 0:02:25.1]}
29... Rb1 {[%clk 0:02:59.4]} 30. Ra1 {[%clk 0:02:22.5]} 30... Rxc1+ {[%clk
0:02:55.6]} 31. Rxc1 {[%clk 0:02:21]} 31... Rb6 {[%clk 0:02:50.3]} 32. Qxc5
{[%clk 0:02:08]} 32... Qxc5 {[%clk 0:02:47.6]} 33. Rxc5 {[%clk 0:02:07.9]} 33...
Rb1+ {[%clk 0:02:42.8]} 34. Bf1 {[%clk 0:02:06.8]} 34... Bb8 {[%clk 0:02:28.6]}
35. Kg2 {[%clk 0:01:48.1]} 35... g6 {[%clk 0:02:23.1]} 36. Bd3 {[%clk
0:01:34.4]} 36... Rb2 {[%clk 0:02:19.6]} 37. Rb5 {[%clk 0:01:24.5]} 37... Rxb5
{[%clk 0:02:16.3]} 38. Bxb5 {[%clk 0:01:24.4]} 38... Bd5 {[%clk 0:02:15.8]} 39.
Bd7 {[%clk 0:01:15.5]} 39... Bxe5 {[%clk 0:02:13.9]} 40. Bb5 {[%clk 0:01:09.3]}
40... g5 {[%clk 0:02:06.7]} 41. h3 {[%clk 0:01:04.3]} 41... h5 {[%clk
0:02:03.5]} 42. g4 {[%clk 0:01:03.3]} 42... hxg4 {[%clk 0:02:00.9]} 43. hxg4
{[%clk 0:01:03.2]} 43... Bf4 {[%clk 0:01:59.5]} 44. Be2 {[%clk 0:00:59.7]} 44...
f5 {[%clk 0:01:56.9]} 45. Kh3 {[%clk 0:00:54.8]} 45... Kg7 {[%clk 0:01:40.9]}
46. gxf5 {[%clk 0:00:51.2]} 46... Kf6 {[%clk 0:01:40.1]} 47. Kg4 {[%clk
0:00:49.8]} 47... Be4 {[%clk 0:01:38.2]} 48. Nd4 {[%clk 0:00:46.2]} 48... Be5
{[%clk 0:01:35.5]} 49. Nb3 {[%clk 0:00:28.8]} 49... Bxf5+ {[%clk 0:01:33.2]} 50.
Kf3 {[%clk 0:00:27.8]} 50... Be6 {[%clk 0:01:29.5]} 51. Nd2 {[%clk 0:00:25.7]}
51... Bd5+ {[%clk 0:01:28.3]} 52. Ke3 {[%clk 0:00:24.2]} 52... Bf4+ {[%clk
0:01:26.1]} 53. Kd3 {[%clk 0:00:22.4]} 53... Kf5 {[%clk 0:01:23.4]} 54. Bf3
{[%clk 0:00:19.5]} 54... Bf7 {[%clk 0:01:21.8]} 55. Ne4 {[%clk 0:00:17.4]} 55...
g4 {[%clk 0:01:18.7]} 56. Bg2 {[%clk 0:00:16.1]} 56... Ke5 {[%clk 0:01:16.4]}
57. Ng3 {[%clk 0:00:14.2]} 57... Bg6+ {[%clk 0:01:15.1]} 58. Ke2 {[%clk
0:00:12.7]} 58... Be8 {[%clk 0:01:13.5]} 59. Kf1 {[%clk 0:00:11.8]} 59... Bb5+
{[%clk 0:01:12.3]} 60. Kg1 {[%clk 0:00:10.7]} 60... Bd2 {[%clk 0:01:09.6]} 61.
Bf1 {[%clk 0:00:10]} 61... Bd7 {[%clk 0:01:08.1]} 62. Be2 {[%clk 0:00:09.3]}
62... Kf4 {[%clk 0:01:06.4]} 63. Kg2 {[%clk 0:00:08.5]} 63... Bc6+ {[%clk
0:01:05]} 64. Kf1 {[%clk 0:00:07.9]} 64... Bb4 {[%clk 0:01:04.1]} 65. Kg1 {[%clk
0:00:07.2]} 65... Bc5 {[%clk 0:01:02.7]} 66. Kf1 {[%clk 0:00:06.4]} 66... Kg5
{[%clk 0:01:01.4]} 67. Kg1 {[%clk 0:00:05.7]} 67... Kh4 {[%clk 0:00:59.4]} 68.
Bf1 {[%clk 0:00:05.2]} 68... Bd7 {[%clk 0:00:54.9]} 69. Bg2 {[%clk 0:00:04.8]}
69... Bd6 {[%clk 0:00:53.3]} 70. Bf1 {[%clk 0:00:04.7]} 70... Be6 {[%clk
0:00:51.2]} 71. Bg2 {[%clk 0:00:03.8]} 71... Kg5 {[%clk 0:00:50.6]} 72. Bf1
{[%clk 0:00:02.1]} 72... Kf4 {[%clk 0:00:49.4]} 73. Bg2 {[%clk 0:00:01.5]} 73...
Bc4 {[%clk 0:00:48.2]} 74. Bf1 {[%clk 0:00:01.4]} 74... Bb3 {[%clk 0:00:46.9]}
75. Bg2 {[%clk 0:00:00.8]} 75... Bc2 {[%clk 0:00:46.6]} 76. Bf1 {[%clk
0:00:00.6]} 76... Be4 {[%clk 0:00:45]} 77. Bg2 {[%clk 0:00:00.5]} 77... Bxg2
{[%clk 0:00:44.1]} 78. Kxg2 {[%clk 0:00:00.3]} 78... Bc5 {[%clk 0:00:43.7]} 0-1

[Event "Live Chess"]
[Site "Chess.com"]
[Date "2024.06.02"]
[Round "-"]
[White "juniortay"]
[Black "JohanKjeldahl"]
[Result "1-0"]
[WhiteElo "2409"]
[BlackElo "1857"]
[TimeControl "300"]
[EndTime "23:31:28 PDT"]
[Termination "juniortay won by resignation"]

1. e4 {[%clk 0:04:52]} 1... c5 {[%clk 0:04:57.7]} 2. Nf3 {[%clk 0:04:49.9]} 2...
e6 {[%clk 0:04:56.7]} 3. d4 {[%clk 0:04:48.9]} 3... cxd4 {[%clk 0:04:55.8]} 4.
Bg5 {[%clk 0:04:48.3]} 4... Qb6 {[%clk 0:04:47]} 5. Qxd4 {[%clk 0:04:40.4]} 5...
Nc6 {[%clk 0:04:39.3]} 6. Qxb6 {[%clk 0:04:38.9]} 6... axb6 {[%clk 0:04:37.2]}
7. Nbd2 {[%clk 0:04:36.3]} 7... Nge7 {[%clk 0:04:31.2]} 8. Bd3 {[%clk
0:04:28.5]} 8... h6 {[%clk 0:04:28.5]} 9. Be3 {[%clk 0:04:27.1]} 9... b5 {[%clk
0:04:26.1]} 10. Bxb5 {[%clk 0:04:25.8]} 10... Nb4 {[%clk 0:04:18.3]} 11. Bd3
{[%clk 0:04:09.2]} 11... Ng6 {[%clk 0:04:11.1]} 12. a3 {[%clk 0:03:59.2]} 12...
Nxd3+ {[%clk 0:04:08.5]} 13. cxd3 {[%clk 0:03:58.3]} 13... Be7 {[%clk
0:04:06.1]} 14. Rc1 {[%clk 0:03:57]} 14... O-O {[%clk 0:04:02.9]} 15. Nc4 {[%clk
0:03:55]} 15... b5 {[%clk 0:04:00]} 16. Nb6 {[%clk 0:03:53.4]} 16... Rb8 {[%clk
0:03:58.3]} 17. Kd2 {[%clk 0:03:52.4]} 17... f5 {[%clk 0:03:38.9]} 18. Nxc8
{[%clk 0:03:43.6]} 18... Rfxc8 {[%clk 0:03:36.5]} 19. Rxc8+ {[%clk 0:03:42.3]}
19... Rxc8 {[%clk 0:03:35.4]} 20. Rc1 {[%clk 0:03:41.9]} 20... Rxc1 {[%clk
0:03:30.7]} 21. Kxc1 {[%clk 0:03:40.4]} 21... f4 {[%clk 0:03:29.8]} 22. Bd4
{[%clk 0:03:38.5]} 22... d6 {[%clk 0:03:27]} 23. Kc2 {[%clk 0:03:33.2]} 23... e5
{[%clk 0:03:25.9]} 24. Bc3 {[%clk 0:03:30.9]} 24... Kf7 {[%clk 0:03:23.8]} 25.
d4 {[%clk 0:03:29.9]} 25... Ke6 {[%clk 0:03:22]} 26. Kb3 {[%clk 0:03:27.4]}
26... Nf8 {[%clk 0:03:12.2]} 27. d5+ {[%clk 0:03:26.1]} 27... Kd7 {[%clk
0:03:10.1]} 28. Kb4 {[%clk 0:03:24.1]} 1-0

[Event "Live Chess"]
[Site "Chess.com"]
[Date "2024.06.02"]
[Round "-"]
[White "Duke_of_Bebington"]
[Black "elephantgerrald"]
[Result "1-0"]
[WhiteElo "1661"]
[BlackElo "839"]
[TimeControl "300"]
[EndTime "23:31:42 PDT"]
[Termination "Duke_of_Bebington won by checkmate"]

1. e4 {[%clk 0:04:57]} 1... e5 {[%clk 0:04:58.9]} 2. Nf3 {[%clk 0:04:56]} 2...
Nc6 {[%clk 0:04:55.9]} 3. Bc4 {[%clk 0:04:55.1]} 3... Nf6 {[%clk 0:04:54.1]} 4.
O-O {[%clk 0:04:53.2]} 4... Bc5 {[%clk 0:04:52.6]} 5. c3 {[%clk 0:04:47.1]} 5...
O-O {[%clk 0:04:50.6]} 6. d4 {[%clk 0:04:45.7]} 6... exd4 {[%clk 0:04:42.9]} 7.
cxd4 {[%clk 0:04:45.6]} 7... Bxd4 {[%clk 0:04:34.8]} 8. Nxd4 {[%clk 0:04:43.2]}
8... Nxd4 {[%clk 0:04:32.3]} 9. Qxd4 {[%clk 0:04:41.8]} 9... d6 {[%clk
0:04:21.2]} 10. Bg5 {[%clk 0:04:39.2]} 10... c5 {[%clk 0:04:16]} 11. Bxf6 {[%clk
0:04:23.1]} 11... cxd4 {[%clk 0:04:12]} 12. Bxd8 {[%clk 0:04:21.8]} 12... Rxd8
{[%clk 0:04:11.2]} 13. Rd1 {[%clk 0:04:18.2]} 13... Bg4 {[%clk 0:04:01.9]} 14.
f3 {[%clk 0:04:14.4]} 14... Bh5 {[%clk 0:03:57.9]} 15. Rxd4 {[%clk 0:04:12.8]}
15... g6 {[%clk 0:03:55.4]} 16. Nc3 {[%clk 0:04:11.7]} 16... Rac8 {[%clk
0:03:49.4]} 17. Rad1 {[%clk 0:04:08.1]} 17... b5 {[%clk 0:03:45.2]} 18. Bb3
{[%clk 0:04:06.2]} 18... Rc6 {[%clk 0:03:38.1]} 19. Nxb5 {[%clk 0:04:01.7]}
19... a6 {[%clk 0:03:33.2]} 20. Nxd6 {[%clk 0:03:57.5]} 20... Rdc8 {[%clk
0:03:29.8]} 21. Nxf7 {[%clk 0:03:51.3]} 21... Kg7 {[%clk 0:03:25.6]} 22. Nd6
{[%clk 0:03:43.4]} 22... R8c7 {[%clk 0:03:19.5]} 23. Ne8+ {[%clk 0:03:42.2]}
23... Kh6 {[%clk 0:03:15.9]} 24. Nxc7 {[%clk 0:03:41.4]} 24... Rxc7 {[%clk
0:03:14.9]} 25. Rd7 {[%clk 0:03:36.8]} 25... Rxd7 {[%clk 0:03:13.4]} 26. Rxd7
{[%clk 0:03:34.9]} 26... a5 {[%clk 0:03:13.3]} 27. g4 {[%clk 0:03:33.2]} 27...
a4 {[%clk 0:03:13.2]} 28. Bg8 {[%clk 0:03:30.8]} 28... Kg5 {[%clk 0:03:11.1]}
29. gxh5 {[%clk 0:03:30]} 29... Kxh5 {[%clk 0:03:09.6]} 30. Rxh7+ {[%clk
0:03:28.4]} 30... Kg5 {[%clk 0:03:08]} 31. Ra7 {[%clk 0:03:25.9]} 31... Kf6
{[%clk 0:03:06.4]} 32. Rxa4 {[%clk 0:03:24.3]} 32... Ke5 {[%clk 0:03:05.2]} 33.
Bd5 {[%clk 0:03:21.7]} 33... Kd6 {[%clk 0:03:03.5]} 34. f4 {[%clk 0:03:20.7]}
34... Ke7 {[%clk 0:03:01.6]} 35. f5 {[%clk 0:03:18.9]} 35... gxf5 {[%clk
0:02:59.9]} 36. exf5 {[%clk 0:03:18.4]} 36... Kf6 {[%clk 0:02:58.9]} 37. Be6
{[%clk 0:03:17.5]} 37... Ke5 {[%clk 0:02:55.6]} 38. Rb4 {[%clk 0:03:16]} 38...
Kd6 {[%clk 0:02:54.5]} 39. a4 {[%clk 0:03:15.9]} 39... Kc6 {[%clk 0:02:53.6]}
40. a5 {[%clk 0:03:15.8]} 40... Kc7 {[%clk 0:02:52.8]} 41. a6 {[%clk 0:03:14.8]}
41... Kd6 {[%clk 0:02:51.1]} 42. a7 {[%clk 0:03:13.9]} 42... Kc7 {[%clk
0:02:50.5]} 43. a8=Q {[%clk 0:03:13.8]} 43... Kd6 {[%clk 0:02:49.3]} 44. Qd5+
{[%clk 0:03:12]} 44... Ke7 {[%clk 0:02:49.2]} 45. Rb7+ {[%clk 0:03:11]} 45...
Kf6 {[%clk 0:02:49.1]} 46. Rf7+ {[%clk 0:03:10]} 46... Kg5 {[%clk 0:02:47.8]}
47. Qg2+ {[%clk 0:03:08.9]} 47... Kh5 {[%clk 0:02:45.8]} 48. Rh7# {[%clk
0:03:06.5]} 1-0